[Event "Late-Titled-Tuesday-Blitz-July-09-2024"]
[Site "Chess.com"]
[Date "2024.07.09"]
[Round "5"]
[White "Andreikka"]
[Black "Vladimir_2020"]
[Result "1/2-1/2"]
[WhiteElo "3003"]
[BlackElo "2773"]
[TimeControl "180+1"]
[EndTime "14:55:53 PDT"]
[Termination "Game drawn by repetition"]

1. e3 {[%clk 0:02:45.1]} 1... Nf6 {[%clk 0:02:55.1]} 2. Nf3 {[%clk 0:02:43.8]}
2... d5 {[%clk 0:02:47.6]} 3. c4 {[%clk 0:02:43.6]} 3... c6 {[%clk 0:02:44]} 4.
Qc2 {[%clk 0:02:42.4]} 4... g6 {[%clk 0:02:36.9]} 5. b3 {[%clk 0:02:42.4]} 5...
Bg7 {[%clk 0:02:36.6]} 6. Bb2 {[%clk 0:02:42.3]} 6... O-O {[%clk 0:02:36.7]} 7.
Be2 {[%clk 0:02:40.8]} 7... Bg4 {[%clk 0:02:34.8]} 8. d3 {[%clk 0:02:38.4]} 8...
Nbd7 {[%clk 0:02:32]} 9. Nbd2 {[%clk 0:02:37.3]} 9... Re8 {[%clk 0:02:25.9]} 10.
h3 {[%clk 0:02:34.9]} 10... Bxf3 {[%clk 0:02:25.1]} 11. Nxf3 {[%clk 0:02:35.8]}
11... e5 {[%clk 0:02:23.4]} 12. O-O {[%clk 0:02:35.8]} 12... Rc8 {[%clk
0:02:10.6]} 13. Rfd1 {[%clk 0:02:34.3]} 13... Qe7 {[%clk 0:02:09.6]} 14. Rac1
{[%clk 0:02:29]} 14... d4 {[%clk 0:02:03.4]} 15. exd4 {[%clk 0:02:17.1]} 15...
exd4 {[%clk 0:02:03]} 16. Re1 {[%clk 0:02:17.1]} 16... c5 {[%clk 0:02:01.5]} 17.
Rcd1 {[%clk 0:02:16.8]} 17... Nh5 {[%clk 0:01:49.3]} 18. Bc1 {[%clk 0:02:15.2]}
18... Qd6 {[%clk 0:01:44.3]} 19. Bf1 {[%clk 0:02:15.1]} 19... Nf4 {[%clk
0:01:38.5]} 20. g3 {[%clk 0:02:14.1]} 20... Ne6 {[%clk 0:01:36.2]} 21. Bg2
{[%clk 0:02:14.3]} 21... b6 {[%clk 0:01:36.4]} 22. Re2 {[%clk 0:02:06.8]} 22...
Nc7 {[%clk 0:01:18.4]} 23. Rde1 {[%clk 0:02:02.2]} 23... Rxe2 {[%clk 0:01:17.5]}
24. Rxe2 {[%clk 0:01:54.2]} 24... Re8 {[%clk 0:01:17.2]} 25. Bf4 {[%clk
0:01:54.6]} 25... Rxe2 {[%clk 0:01:16.4]} 26. Qxe2 {[%clk 0:01:54.5]} 26... Qe6
{[%clk 0:01:16.7]} 27. Qd1 {[%clk 0:01:51.4]} 27... Ne5 {[%clk 0:01:13.6]} 28.
Ng5 {[%clk 0:01:46.5]} 28... Qe7 {[%clk 0:01:12.5]} 29. h4 {[%clk 0:01:46]}
29... Ne6 {[%clk 0:01:03.4]} 30. Nxe6 {[%clk 0:01:41.4]} 30... Qxe6 {[%clk
0:01:03.5]} 31. Be4 {[%clk 0:01:41.4]} 31... h5 {[%clk 0:00:56.8]} 32. Kg2
{[%clk 0:01:39.8]} 32... Kh8 {[%clk 0:00:49.5]} 33. Qe2 {[%clk 0:01:36.9]} 33...
f5 {[%clk 0:00:43.2]} 34. Bd5 {[%clk 0:01:34.9]} 34... Qe7 {[%clk 0:00:43]} 35.
Kf1 {[%clk 0:01:30.8]} 35... Kh7 {[%clk 0:00:42.1]} 36. Bg5 {[%clk 0:01:26.2]}
36... Qd7 {[%clk 0:00:37.6]} 37. Bf4 {[%clk 0:01:02.8]} 37... Qe7 {[%clk
0:00:35.9]} 38. a3 {[%clk 0:00:51.2]} 38... a5 {[%clk 0:00:27.6]} 39. a4 {[%clk
0:00:45.1]} 39... Bf6 {[%clk 0:00:26.9]} 40. Kg2 {[%clk 0:00:36.2]} 40... Kg7
{[%clk 0:00:26.9]} 41. Qd2 {[%clk 0:00:36.2]} 41... Nf7 {[%clk 0:00:23.8]} 42.
Bb8 {[%clk 0:00:29.1]} 42... Qd8 {[%clk 0:00:22.2]} 43. Qf4 {[%clk 0:00:27.9]}
43... Qe7 {[%clk 0:00:16.7]} 44. Qc7 {[%clk 0:00:13.9]} 44... Qxc7 {[%clk
0:00:16.1]} 45. Bxc7 {[%clk 0:00:14.1]} 45... Bd8 {[%clk 0:00:16]} 46. Bb8
{[%clk 0:00:13.8]} 46... Kf6 {[%clk 0:00:14.9]} 47. Kf3 {[%clk 0:00:12.2]} 47...
Ne5+ {[%clk 0:00:14.5]} 48. Ke2 {[%clk 0:00:13]} 48... Nd7 {[%clk 0:00:14.1]}
49. Bd6 {[%clk 0:00:13.2]} 49... Ne5 {[%clk 0:00:12.2]} 50. f3 {[%clk
0:00:09.4]} 50... Nf7 {[%clk 0:00:12]} 51. Bb8 {[%clk 0:00:09.1]} 51... Ne5
{[%clk 0:00:12]} 52. Bd6 {[%clk 0:00:01.9]} 52... Nf7 {[%clk 0:00:11.8]} 53. Bb8
{[%clk 0:00:01.4]} 53... Ne5 {[%clk 0:00:11.8]} 54. Bb7 {[%clk 0:00:01.1]} 54...
Nd7 {[%clk 0:00:11]} 55. Bd6 {[%clk 0:00:01.4]} 55... Ne5 {[%clk 0:00:10.9]} 56.
Bc8 {[%clk 0:00:02.1]} 56... Nf7 {[%clk 0:00:10.9]} 57. Bb8 {[%clk 0:00:02.2]}
57... Ne5 {[%clk 0:00:10.9]} 58. Bb7 {[%clk 0:00:01.1]} 58... Nd7 {[%clk
0:00:10.7]} 59. Bd6 {[%clk 0:00:01.6]} 59... Ne5 {[%clk 0:00:10.7]} 60. Bd5
{[%clk 0:00:02.2]} 1/2-1/2

[Event "Late-Titled-Tuesday-Blitz-July-09-2024"]
[Site "Chess.com"]
[Date "2024.07.09"]
[Round "5"]
[White "Lector118"]
[Black "jbking07"]
[Result "0-1"]
[WhiteElo "2646"]
[BlackElo "2457"]
[TimeControl "180+1"]
[EndTime "14:55:56 PDT"]
[Termination "jbking07 won by checkmate"]

1. d4 {[%clk 0:02:54.7]} 1... Nf6 {[%clk 0:02:59.1]} 2. Bf4 {[%clk 0:02:54.6]}
2... c5 {[%clk 0:02:58.1]} 3. d5 {[%clk 0:02:54.6]} 3... Qb6 {[%clk 0:02:57.5]}
4. Nc3 {[%clk 0:02:54.1]} 4... d6 {[%clk 0:02:57.2]} 5. e4 {[%clk 0:02:53.4]}
5... g6 {[%clk 0:02:56.6]} 6. Rb1 {[%clk 0:02:50.8]} 6... Bg7 {[%clk 0:02:56.1]}
7. Nf3 {[%clk 0:02:51.2]} 7... O-O {[%clk 0:02:55.9]} 8. h3 {[%clk 0:02:47]}
8... Qa5 {[%clk 0:02:49.7]} 9. Nd2 {[%clk 0:02:42.8]} 9... a6 {[%clk 0:02:49]}
10. Bd3 {[%clk 0:02:14.3]} 10... b5 {[%clk 0:02:48.3]} 11. O-O {[%clk
0:02:14.6]} 11... Nbd7 {[%clk 0:02:47.3]} 12. a4 {[%clk 0:02:04.3]} 12... b4
{[%clk 0:02:39.6]} 13. Nc4 {[%clk 0:02:03.1]} 13... Qd8 {[%clk 0:02:38.8]} 14.
Ne2 {[%clk 0:02:00.3]} 14... a5 {[%clk 0:02:38.3]} 15. Re1 {[%clk 0:01:46.1]}
15... Ba6 {[%clk 0:02:37.7]} 16. Nc1 {[%clk 0:01:42]} 16... Bxc4 {[%clk
0:02:35.2]} 17. Bxc4 {[%clk 0:01:42.9]} 17... Nb6 {[%clk 0:02:34.5]} 18. Bb5
{[%clk 0:01:42.4]} 18... c4 {[%clk 0:02:29.8]} 19. Qf3 {[%clk 0:01:37.8]} 19...
Nfd7 {[%clk 0:02:27.7]} 20. Ne2 {[%clk 0:01:32]} 20... Rc8 {[%clk 0:02:24.4]}
21. Qe3 {[%clk 0:01:29.2]} 21... Nc5 {[%clk 0:02:19.3]} 22. b3 {[%clk
0:01:16.2]} 22... cxb3 {[%clk 0:02:10.9]} 23. cxb3 {[%clk 0:01:17.1]} 23... e5
{[%clk 0:01:46.2]} 24. Bh2 {[%clk 0:01:08.9]} 24... Qe7 {[%clk 0:01:41.5]} 25.
Rec1 {[%clk 0:01:00.1]} 25... f5 {[%clk 0:01:38.1]} 26. f3 {[%clk 0:01:00.3]}
26... f4 {[%clk 0:01:37.6]} 27. Qd2 {[%clk 0:00:59.5]} 27... Rc7 {[%clk
0:01:25.8]} 28. Kf1 {[%clk 0:00:58.4]} 28... Rfc8 {[%clk 0:01:25]} 29. Bc6
{[%clk 0:00:57]} 29... Nbd7 {[%clk 0:01:24.6]} 30. Bg1 {[%clk 0:00:56.4]} 30...
Na6 {[%clk 0:01:13.4]} 31. Bb5 {[%clk 0:00:53]} 31... Ndc5 {[%clk 0:01:09.1]}
32. Bxa6 {[%clk 0:00:40.3]} 32... Nxa6 {[%clk 0:01:08.4]} 33. Rc6 {[%clk
0:00:38]} 33... Nb8 {[%clk 0:01:05.3]} 34. Rxc7 {[%clk 0:00:37.2]} 34... Qxc7
{[%clk 0:01:02.5]} 35. Rc1 {[%clk 0:00:38.1]} 35... Qb7 {[%clk 0:01:02.7]} 36.
Rxc8+ {[%clk 0:00:34.9]} 36... Qxc8 {[%clk 0:01:03.6]} 37. Qc1 {[%clk
0:00:34.8]} 37... Qd8 {[%clk 0:00:58.5]} 38. Qc4 {[%clk 0:00:33.6]} 38... Nd7
{[%clk 0:00:56.6]} 39. Qc6 {[%clk 0:00:31.4]} 39... Bf8 {[%clk 0:00:55.7]} 40.
Bf2 {[%clk 0:00:30.3]} 40... Nb8 {[%clk 0:00:43.9]} 41. Qb7 {[%clk 0:00:30.1]}
41... Nd7 {[%clk 0:00:38.5]} 42. Nc1 {[%clk 0:00:30.4]} 42... Nf6 {[%clk
0:00:38]} 43. Nd3 {[%clk 0:00:29.3]} 43... Nh5 {[%clk 0:00:38.2]} 44. Qb6 {[%clk
0:00:28.2]} 44... Ng3+ {[%clk 0:00:36]} 45. Ke1 {[%clk 0:00:27.5]} 45... Qg5
{[%clk 0:00:34.5]} 46. Qxa5 {[%clk 0:00:25.2]} 46... Nxe4 {[%clk 0:00:34.4]} 47.
fxe4 {[%clk 0:00:24.8]} 47... Qxg2 {[%clk 0:00:34.9]} 48. Qxb4 {[%clk
0:00:24.8]} 48... Qxh3 {[%clk 0:00:33.4]} 49. a5 {[%clk 0:00:24.3]} 49... Qxd3
{[%clk 0:00:32.8]} 50. Qa4 {[%clk 0:00:22.1]} 50... f3 {[%clk 0:00:31.8]} 51.
Qc4 {[%clk 0:00:21.3]} 51... Qb1+ {[%clk 0:00:28.9]} 52. Kd2 {[%clk 0:00:21.5]}
52... Bh6+ {[%clk 0:00:28.9]} 53. Kc3 {[%clk 0:00:20.1]} 53... Qa1+ {[%clk
0:00:25.1]} 54. Kb4 {[%clk 0:00:19.2]} 54... Bd2+ {[%clk 0:00:24.4]} 55. Kb5
{[%clk 0:00:19.7]} 55... Qxa5+ {[%clk 0:00:24.3]} 56. Kc6 {[%clk 0:00:20.3]}
56... Bb4 {[%clk 0:00:20.4]} 57. Kd7 {[%clk 0:00:15.9]} 57... Bc5 {[%clk
0:00:16.2]} 58. Bxc5 {[%clk 0:00:09.7]} 58... Qxc5 {[%clk 0:00:17.1]} 59. Qf1
{[%clk 0:00:09.5]} 59... f2 {[%clk 0:00:16.9]} 60. Ke6 {[%clk 0:00:09.4]} 60...
Kg7 {[%clk 0:00:16.5]} 61. Qg2 {[%clk 0:00:08.7]} 61... Qc8+ {[%clk 0:00:14.6]}
62. Ke7 {[%clk 0:00:08.4]} 62... Qb7+ {[%clk 0:00:14]} 63. Ke6 {[%clk
0:00:08.7]} 63... Qf7+ {[%clk 0:00:13.9]} 64. Kxd6 {[%clk 0:00:08.9]} 64... f1=Q
{[%clk 0:00:14.8]} 65. Qg3 {[%clk 0:00:09]} 65... Q7f4 {[%clk 0:00:14.7]} 66.
Qh3 {[%clk 0:00:08.8]} 66... Qd2 {[%clk 0:00:11.9]} 67. Qd7+ {[%clk 0:00:08.6]}
67... Qf7 {[%clk 0:00:11.4]} 68. Qh3 {[%clk 0:00:08.7]} 68... Qb4+ {[%clk
0:00:10.5]} 69. Kc6 {[%clk 0:00:09.1]} 69... Qfb7# {[%clk 0:00:09.7]} 0-1

[Event "Late-Titled-Tuesday-Blitz-July-09-2024"]
[Site "Chess.com"]
[Date "2024.07.09"]
[Round "5"]
[White "Antek_Radzimski"]
[Black "glebus008"]
[Result "1/2-1/2"]
[WhiteElo "2555"]
[BlackElo "2401"]
[TimeControl "180+1"]
[EndTime "14:56:07 PDT"]
[Termination "Game drawn - insufficient material"]

1. e4 {[%clk 0:03:00.9]} 1... Nc6 {[%clk 0:02:59.4]} 2. d4 {[%clk 0:02:59.6]}
2... d5 {[%clk 0:02:59.4]} 3. exd5 {[%clk 0:02:58.4]} 3... Qxd5 {[%clk
0:03:00.3]} 4. Nf3 {[%clk 0:02:57.9]} 4... Bg4 {[%clk 0:02:59.2]} 5. Be2 {[%clk
0:02:55.5]} 5... e5 {[%clk 0:02:57.3]} 6. c4 {[%clk 0:02:40]} 6... Qa5+ {[%clk
0:02:56.8]} 7. Bd2 {[%clk 0:02:39.6]} 7... Bb4 {[%clk 0:02:52.2]} 8. d5 {[%clk
0:02:39.3]} 8... Bxf3 {[%clk 0:02:30.7]} 9. Bxf3 {[%clk 0:02:38.9]} 9... Nd4
{[%clk 0:02:30.9]} 10. a3 {[%clk 0:02:26.2]} 10... Bxd2+ {[%clk 0:02:18.4]} 11.
Nxd2 {[%clk 0:02:25.6]} 11... Ne7 {[%clk 0:01:49.2]} 12. O-O {[%clk 0:02:21.6]}
12... O-O {[%clk 0:01:46.8]} 13. b4 {[%clk 0:02:20.1]} 13... Qa6 {[%clk
0:01:46.5]} 14. Re1 {[%clk 0:01:57]} 14... Ng6 {[%clk 0:01:31.8]} 15. Bh5 {[%clk
0:01:37.8]} 15... Rae8 {[%clk 0:01:26.5]} 16. Bxg6 {[%clk 0:01:29.1]} 16... Qxg6
{[%clk 0:01:24.5]} 17. Ne4 {[%clk 0:01:14.7]} 17... b6 {[%clk 0:00:55.9]} 18. f3
{[%clk 0:00:55.3]} 18... f5 {[%clk 0:00:50]} 19. Nf2 {[%clk 0:00:55.3]} 19... h5
{[%clk 0:00:32.6]} 20. Qd3 {[%clk 0:00:48.9]} 20... h4 {[%clk 0:00:27.9]} 21.
Rad1 {[%clk 0:00:46.4]} 21... Qg5 {[%clk 0:00:17.4]} 22. c5 {[%clk 0:00:32.8]}
22... bxc5 {[%clk 0:00:16.4]} 23. bxc5 {[%clk 0:00:33.7]} 23... Rf6 {[%clk
0:00:16.3]} 24. Nh3 {[%clk 0:00:29.5]} 24... Qg6 {[%clk 0:00:14]} 25. f4 {[%clk
0:00:23.6]} 25... Qg4 {[%clk 0:00:11.1]} 26. fxe5 {[%clk 0:00:16.3]} 26... Rg6
{[%clk 0:00:10.8]} 27. Nf4 {[%clk 0:00:07.3]} 27... Qxf4 {[%clk 0:00:06.3]} 28.
Qxd4 {[%clk 0:00:07.2]} 28... Qg5 {[%clk 0:00:03.8]} 29. Re2 {[%clk 0:00:05.8]}
29... h3 {[%clk 0:00:04.1]} 30. g3 {[%clk 0:00:05.4]} 30... f4 {[%clk
0:00:04.7]} 31. Rd3 {[%clk 0:00:03.8]} 31... fxg3 {[%clk 0:00:04.2]} 32. hxg3
{[%clk 0:00:03.3]} 32... Qc1+ {[%clk 0:00:05.1]} 33. Kh2 {[%clk 0:00:03.3]}
33... Qf1 {[%clk 0:00:03.8]} 34. Rf2 {[%clk 0:00:03.3]} 34... Qe1 {[%clk
0:00:03.5]} 35. Rdf3 {[%clk 0:00:03.4]} 35... Qxe5 {[%clk 0:00:03.4]} 36. Rf8+
{[%clk 0:00:03.4]} 36... Kh7 {[%clk 0:00:03.8]} 37. Qh4+ {[%clk 0:00:01.9]}
37... Rh6 {[%clk 0:00:04.2]} 38. Rxe8 {[%clk 0:00:02.6]} 38... Qxe8 {[%clk
0:00:03.8]} 39. Qg4 {[%clk 0:00:03.3]} 39... Qg6 {[%clk 0:00:03.3]} 40. Qxg6+
{[%clk 0:00:03.5]} 40... Rxg6 {[%clk 0:00:03.7]} 41. Rd2 {[%clk 0:00:04.2]}
41... Kg8 {[%clk 0:00:02.7]} 42. Kxh3 {[%clk 0:00:04.2]} 42... Kf7 {[%clk
0:00:02.3]} 43. Kg2 {[%clk 0:00:04.3]} 43... Ke7 {[%clk 0:00:02.7]} 44. Kf3
{[%clk 0:00:04.8]} 44... Kd7 {[%clk 0:00:03.2]} 45. Ke4 {[%clk 0:00:05.3]} 45...
Rf6 {[%clk 0:00:03.7]} 46. g4 {[%clk 0:00:05.5]} 46... Rf1 {[%clk 0:00:03.9]}
47. Rd3 {[%clk 0:00:05.5]} 47... Re1+ {[%clk 0:00:04.3]} 48. Kd4 {[%clk
0:00:05.2]} 48... Rg1 {[%clk 0:00:03.7]} 49. Rf3 {[%clk 0:00:03.7]} 49... Rd1+
{[%clk 0:00:02.9]} 50. Ke5 {[%clk 0:00:04.2]} 50... Re1+ {[%clk 0:00:03.2]} 51.
Kf5 {[%clk 0:00:04.9]} 51... Rd1 {[%clk 0:00:03.1]} 52. Kg6 {[%clk 0:00:05.5]}
52... Rxd5 {[%clk 0:00:03.1]} 53. Rf7+ {[%clk 0:00:05.3]} 53... Kc6 {[%clk
0:00:03.4]} 54. Rxg7 {[%clk 0:00:05.8]} 54... Rxc5 {[%clk 0:00:03.8]} 55. g5
{[%clk 0:00:06.1]} 55... Rc3 {[%clk 0:00:03.4]} 56. Kh7 {[%clk 0:00:05.2]} 56...
Rxa3 {[%clk 0:00:03.5]} 57. g6 {[%clk 0:00:05.5]} 57... Rh3+ {[%clk 0:00:04.4]}
58. Kg8 {[%clk 0:00:05.7]} 58... a5 {[%clk 0:00:04.3]} 59. Re7 {[%clk
0:00:06.4]} 59... Kb5 {[%clk 0:00:03.6]} 60. Rxc7 {[%clk 0:00:05.8]} 60... Rg3
{[%clk 0:00:03.7]} 61. g7 {[%clk 0:00:06]} 61... a4 {[%clk 0:00:03.6]} 62. Kf8
{[%clk 0:00:06.3]} 62... Rxg7 {[%clk 0:00:03.4]} 63. Kxg7 {[%clk 0:00:06.6]}
63... Kb4 {[%clk 0:00:04.3]} 64. Kf6 {[%clk 0:00:06.9]} 64... a3 {[%clk
0:00:04.5]} 65. Ke5 {[%clk 0:00:07.5]} 65... a2 {[%clk 0:00:05]} 66. Ra7 {[%clk
0:00:07.8]} 66... Kb3 {[%clk 0:00:05.4]} 67. Kd4 {[%clk 0:00:08.3]} 67... Kb2
{[%clk 0:00:06]} 68. Kd3 {[%clk 0:00:08.9]} 68... a1=Q {[%clk 0:00:06.3]} 69.
Rxa1 {[%clk 0:00:09.8]} 69... Kxa1 {[%clk 0:00:06.8]} 1/2-1/2

[Event "Late-Titled-Tuesday-Blitz-July-09-2024"]
[Site "Chess.com"]
[Date "2024.07.09"]
[Round "5"]
[White "Arysya"]
[Black "tptagain"]
[Result "1-0"]
[WhiteElo "2908"]
[BlackElo "3036"]
[TimeControl "180+1"]
[EndTime "14:56:14 PDT"]
[Termination "Arysya won on time"]

1. e4 {[%clk 0:03:00.9]} 1... c6 {[%clk 0:03:00.1]} 2. Nf3 {[%clk 0:03:00.9]}
2... d5 {[%clk 0:03:00.3]} 3. Nc3 {[%clk 0:03:01.5]} 3... Bg4 {[%clk 0:02:59.5]}
4. h3 {[%clk 0:03:01.2]} 4... Bxf3 {[%clk 0:02:59.7]} 5. Qxf3 {[%clk 0:03:02]}
5... e6 {[%clk 0:03:00.2]} 6. g3 {[%clk 0:03:02]} 6... d4 {[%clk 0:02:52.5]} 7.
Nb1 {[%clk 0:03:01.6]} 7... h5 {[%clk 0:02:52.4]} 8. d3 {[%clk 0:02:57.6]} 8...
h4 {[%clk 0:02:51.3]} 9. g4 {[%clk 0:02:52.3]} 9... g5 {[%clk 0:02:44.3]} 10.
Bg2 {[%clk 0:02:48.8]} 10... c5 {[%clk 0:02:33.8]} 11. O-O {[%clk 0:02:47.9]}
11... Nc6 {[%clk 0:02:33.7]} 12. Qe2 {[%clk 0:02:38.8]} 12... Bd6 {[%clk
0:02:31]} 13. e5 {[%clk 0:02:34.8]} 13... Nxe5 {[%clk 0:02:31.1]} 14. Bxb7
{[%clk 0:02:34.2]} 14... Rb8 {[%clk 0:02:31.5]} 15. Be4 {[%clk 0:02:27.5]} 15...
Nd7 {[%clk 0:02:15.4]} 16. Na3 {[%clk 0:02:24.8]} 16... Bf4 {[%clk 0:02:09.2]}
17. Nc4 {[%clk 0:02:22.5]} 17... Qc7 {[%clk 0:02:06.7]} 18. Bxf4 {[%clk
0:02:11.5]} 18... Qxf4 {[%clk 0:02:06.5]} 19. Qf3 {[%clk 0:02:11.6]} 19... Ngf6
{[%clk 0:01:47]} 20. Qxf4 {[%clk 0:02:05.2]} 20... gxf4 {[%clk 0:01:47.9]} 21.
Rfe1 {[%clk 0:02:06.1]} 21... Ke7 {[%clk 0:01:45]} 22. Kf1 {[%clk 0:01:56.1]}
22... Rhg8 {[%clk 0:01:39.3]} 23. b3 {[%clk 0:01:50]} 23... Rg5 {[%clk
0:01:36.2]} 24. Bf3 {[%clk 0:01:44]} 24... Rf8 {[%clk 0:00:54.7]} 25. a3 {[%clk
0:01:42.8]} 25... Nb6 {[%clk 0:00:54.7]} 26. Ne5 {[%clk 0:01:36.6]} 26... Kd6
{[%clk 0:00:54.7]} 27. Nc6 {[%clk 0:01:30.7]} 27... Nbd5 {[%clk 0:00:54.6]} 28.
Na5 {[%clk 0:01:29.3]} 28... Nd7 {[%clk 0:00:33.9]} 29. Nc4+ {[%clk 0:01:24.2]}
29... Kc7 {[%clk 0:00:34.2]} 30. b4 {[%clk 0:01:24.5]} 30... N5b6 {[%clk
0:00:33.4]} 31. Na5 {[%clk 0:01:19.5]} 31... Ne5 {[%clk 0:00:28.1]} 32. Bh1
{[%clk 0:01:14.5]} 32... c4 {[%clk 0:00:25.8]} 33. Re4 {[%clk 0:01:10.4]} 33...
cxd3 {[%clk 0:00:25]} 34. Rxd4 {[%clk 0:01:05]} 34... Rd8 {[%clk 0:00:22]} 35.
Rxd8 {[%clk 0:01:02.9]} 35... Kxd8 {[%clk 0:00:22.9]} 36. cxd3 {[%clk
0:01:03.3]} 36... Kd7 {[%clk 0:00:14.9]} 37. Rc1 {[%clk 0:00:59.6]} 37... f5
{[%clk 0:00:15.2]} 38. d4 {[%clk 0:00:58.2]} 38... Nf7 {[%clk 0:00:08.3]} 39.
gxf5 {[%clk 0:00:54.5]} 39... Rxf5 {[%clk 0:00:09.2]} 40. Nc6 {[%clk 0:00:53.7]}
40... Ng5 {[%clk 0:00:07.8]} 41. Ne5+ {[%clk 0:00:40.1]} 41... Kd8 {[%clk
0:00:08.2]} 42. Nc6+ {[%clk 0:00:40.2]} 42... Kd7 {[%clk 0:00:08.7]} 43. Nxa7
{[%clk 0:00:40.5]} 43... f3 {[%clk 0:00:09.2]} 44. Nc6 {[%clk 0:00:38.5]} 44...
Kd6 {[%clk 0:00:08.5]} 45. Ne5 {[%clk 0:00:38.4]} 45... Kd5 {[%clk 0:00:08]} 46.
Nxf3 {[%clk 0:00:23.3]} 46... Nxf3 {[%clk 0:00:07.3]} 47. Ke2 {[%clk 0:00:23.8]}
47... Kxd4 {[%clk 0:00:05.5]} 48. Bxf3 {[%clk 0:00:24.2]} 48... Nc4 {[%clk
0:00:05.5]} 49. Rd1+ {[%clk 0:00:14.7]} 49... Kc3 {[%clk 0:00:05.9]} 50. Bg4
{[%clk 0:00:10]} 50... Re5+ {[%clk 0:00:05.8]} 51. Kf3 {[%clk 0:00:10.7]} 51...
Nxa3 {[%clk 0:00:05.6]} 52. Rd6 {[%clk 0:00:10.9]} 52... Kxb4 {[%clk 0:00:05.2]}
53. Rxe6 {[%clk 0:00:11]} 53... Rd5 {[%clk 0:00:05.4]} 54. Rh6 {[%clk
0:00:10.9]} 54... Nc4 {[%clk 0:00:05.4]} 55. Be6 {[%clk 0:00:09.4]} 55... Rd3+
{[%clk 0:00:05.5]} 56. Ke2 {[%clk 0:00:08.7]} 56... Rd4 {[%clk 0:00:05.5]} 57.
Bg4 {[%clk 0:00:08]} 57... Ne5 {[%clk 0:00:05.1]} 58. Rxh4 {[%clk 0:00:08.5]}
58... Kc5 {[%clk 0:00:04.8]} 59. f3 {[%clk 0:00:08.8]} 59... Nd3 {[%clk
0:00:03.4]} 60. Rh5+ {[%clk 0:00:08.8]} 60... Kc4 {[%clk 0:00:03]} 61. Ke3
{[%clk 0:00:09.4]} 61... Nc5 {[%clk 0:00:01.7]} 62. Re5 {[%clk 0:00:08.8]} 62...
Rd3+ {[%clk 0:00:02.1]} 63. Kf2 {[%clk 0:00:08.1]} 63... Rd2+ {[%clk 0:00:02.4]}
64. Kg3 {[%clk 0:00:08.7]} 64... Kd4 {[%clk 0:00:02.8]} 65. Re8 {[%clk
0:00:08.5]} 65... Rb2 {[%clk 0:00:03.3]} 66. h4 {[%clk 0:00:08.6]} 66... Nd3
{[%clk 0:00:03.3]} 67. Re4+ {[%clk 0:00:07.9]} 67... Kd5 {[%clk 0:00:02.8]} 68.
Be6+ {[%clk 0:00:08.4]} 68... Kd6 {[%clk 0:00:03]} 69. h5 {[%clk 0:00:08.4]}
69... Ne5 {[%clk 0:00:03.3]} 70. Bg4 {[%clk 0:00:08.8]} 70... Rb1 {[%clk
0:00:03.5]} 71. Kf4 {[%clk 0:00:08.3]} 71... Nd3+ {[%clk 0:00:02.9]} 72. Kg5
{[%clk 0:00:08.6]} 72... Rg1 {[%clk 0:00:02.4]} 73. Rd4+ {[%clk 0:00:08.6]} 1-0